bitfinex/quotes_ETHUSD_20240621
["timestamp","ask_amount","ask_price","bid_price","bid_amount"]
[1718972646368,1.91861913,3488.2,3487.3,2.014]
[1718972646568,1.86147919,3488.1,3487.3,0.94680755]
[1718972646796,1.86147919,3488.1,3487.2,5.72707547]
[1718972646797,0.05717237,3488.0,3487.2,5.72707547]
[1718972647674,2.4535,3488.0,3487.2,5.72707547]
[1718972647999,0.05717237,3487.9,3487.2,5.72707547]
[1718972648205,0.05717237,3487.9,3487.2,6.60499302]
[1718972648362,0.05717237,3487.9,3486.9,3.0521]
[1718972648363,1.86103859,3487.8,3486.9,3.0521]
[1718972648568,0.05717237,3487.9,3486.9,3.0521]
[1718972648569,4.00409127,3487.7,3486.9,3.0521]
[1718972648909,1.36443581,3487.5,3486.9,3.0521]
[1718972649079,0.05717237,3487.4,3486.9,3.93001755]
[1718972649263,0.05717237,3487.7,3486.9,0.87791755]
[1718972649463,0.05717237,3487.7,3486.5,5.72707547]
[1718972649963,1.36443581,3487.4,3486.5,5.72707547]
[1718972650168,2.4064,3487.2,3486.5,5.72707547]
[1718972650366,4.00462255,3487.1,3486.5,5.72707547]
[1718972650567,0.05717237,3487.1,3486.5,5.72707547]
[1718972653303,0.05717237,3487.1,3486.1,8.77917547]
[1718972653467,0.05717237,3487.1,3486.2,1.07931755]
[1718972653907,2.3254,3487.8,3486.4,3.741]
[1718972654224,2.3254,3487.8,3486.8,2.014]
[1718972654511,0.05717237,3487.7,3486.8,2.014]
[1718972654801,0.05717237,3487.7,3486.9,0.3741]
[1718972655015,2.4982,3488.5,3487.2,2.014]
[1718972655215,0.05717237,3488.4,3487.2,7.74107547]
[1718972655381,0.05717237,3488.4,3487.3,1.24680755]
[1718972655984,0.05635698,3488.4,3487.3,1.24680755]
[1718972656195,0.05635698,3488.4,3487.2,5.72707547]
[1718972656401,2.08576997,3488.3,3487.2,5.72707547]
[1718972656717,1.91573586,3488.2,3487.2,5.72707547]
[1718972657005,3.05554159,3488.2,3487.2,5.72707547]
[1718972657178,2.486,3488.0,3487.2,5.72707547]
[1718972657382,0.05554159,3487.9,3487.2,5.72707547]
[1718972658419,0.05554159,3487.9,3487.2,6.29978302]
[1718972658627,0.05635698,3487.9,3487.2,6.29978302]
[1718972658912,0.05635698,3487.9,3487.2,8.31378302]
[1718972659110,0.05635698,3488.5,3487.2,8.31378302]
[1718972662622,1.91633156,3488.5,3487.2,8.31378302]
[1718972662825,1.41976313,3488.5,3487.3,0.8313783]
[1718972663324,1.41976313,3488.5,3487.2,7.74107547]
[1718972663532,1.85997456,3488.4,3487.2,5.72707547]
[1718972663700,5.4206,3488.6,3487.2,5.72707547]
[1718972663701,1.91629827,3488.3,3487.2,5.72707547]
[1718972664023,0.05635698,3488.2,3487.2,6.29978302]
[1718972664235,0.05635698,3488.2,3487.2,5.72707547]
[1718972664721,1.36330566,3488.0,3487.2,5.72707547]
[1718972664923,0.05635698,3487.9,3487.2,5.72707547]
[1718972665331,0.05635698,3487.9,3486.8,8.77917547]
[1718972665541,0.05635698,3487.9,3486.9,3.0]
[1718972665694,1.36330566,3487.8,3487.0,1.17791755]
[1718972665895,1.36330566,3487.8,3486.8,5.72707547]
[1718972665896,0.05635698,3487.7,3486.8,5.72707547]
[1718972666292,1.9163034,3487.7,3486.8,5.72707547]
[1718972666590,0.05635698,3487.7,3486.8,5.72707547]
[1718972667027,1.36347851,3488.0,3486.8,5.72707547]
[1718972667243,1.91641873,3487.9,3486.9,0.94680755]
[1718972667537,1.41983549,3487.9,3486.9,0.94680755]
[1718972667831,1.86007763,3487.8,3486.9,0.94680755]
[1718972668027,1.91643461,3487.7,3486.9,0.94680755]
[1718972668229,1.36347851,3487.4,3486.9,0.94680755]
[1718972668536,1.36347851,3487.4,3487.0,0.6673883]
[1718972669386,1.36347851,3487.2,3487.0,0.6673883]
[1718972669592,1.86007763,3487.2,3486.9,0.94680755]
[1718972669928,3.0,3488.5,3486.9,0.94680755]
[1718972670094,1.36380877,3487.2,3486.9,0.94680755]
[1718972670606,0.49663337,3487.1,3486.7,3.0]
[1718972670933,1.86062341,3487.1,3486.6,2.014]
[1718972671104,1.36399004,3487.2,3486.7,1.37931755]
[1718972671315,0.49663419,3487.1,3486.7,4.37931755]
[1718972671526,1.36398955,3487.1,3486.7,4.37931755]
[1718972671839,1.36398955,3487.2,3486.7,4.37931755]
[1718972672127,1.86062168,3487.1,3486.8,0.63933175]
[1718972672328,1.36398955,3487.1,3486.8,0.63933175]
[1718972672494,1.86062168,3487.0,3486.8,0.63933175]
[1718972672693,0.49663213,3486.9,3486.8,0.63933175]
[1718972672895,1.86062168,3486.9,3486.8,0.63933175]
[1718972673197,1.86060168,3486.9,3486.8,0.63933175]
[1718972673394,1.36395525,3486.9,3486.8,0.63933175]
[1718972675247,0.49664643,3486.9,3486.4,5.72707547]
[1718972675530,1.36384797,3486.5,3486.4,5.72707547]
[1718972675732,1.36384797,3486.5,3486.0,4.727]
[1718972675733,1.8604944,3486.5,3486.0,4.727]
[1718972675905,1.36384797,3486.5,3486.0,4.727]
[1718972676111,1.36384797,3486.5,3486.1,1.55201755]
[1718972676308,1.86022366,3486.4,3486.1,1.55201755]
[1718972676538,1.86022366,3486.3,3486.1,1.55201755]
[1718972676840,1.36350282,3486.3,3486.0,3.0]
[1718972677703,1.36350282,3486.3,3485.9,2.014]
[1718972678015,1.86023594,3486.2,3485.8,5.72707547]
[1718972678233,1.86023594,3486.1,3485.8,5.72707547]
[1718972678411,1.36350282,3486.1,3485.8,5.72707547]
[1718972678603,1.36350282,3486.1,3485.9,1.01595755]
[1718972679347,3.0,3487.5,3485.8,3.0]
[1718972679509,1.36325039,3486.1,3486.0,5.72707547]
[1718972679703,1.36325039,3486.2,3485.8,3.0]
[1718972679908,0.49676484,3486.1,3485.8,0.91595]
[1718972680149,1.36337061,3486.2,3485.8,3.91595]
[1718972680517,1.36337061,3486.2,3485.9,2.277]
[1718972680752,1.36341002,3486.5,3486.1,2.014]
[1718972681003,1.36341002,3486.6,3486.2,0.4291]
[1718972681311,1.36341002,3486.7,3486.2,0.4291]
[1718972681507,1.8600903,3486.6,3486.3,0.24431]
[1718972681708,1.36341002,3486.6,3486.3,0.24431]
[1718972682660,0.49669318,3486.5,3486.3,0.24431]
[1718972683259,1.36348416,3486.7,3486.3,0.24431]
[1718972683416,1.36348416,3486.7,3486.4,0.268741]
[1718972683848,1.36348416,3486.8,3486.4,0.268741]
[1718972684761,1.36348416,3486.8,3486.4,1.995741]
[1718972684973,1.36348416,3486.9,3486.4,1.995741]
[1718972685142,1.36348416,3486.9,3486.5,0.5424841]
[1718972685342,2.08587244,3486.8,3486.6,4.0903]
[1718972685569,2.462,3488.1,3486.8,1.727]
[1718972685783,1.36353627,3487.3,3487.2,1.727]
[1718972686060,1.36353627,3487.6,3487.2,2.277]
[1718972686268,2.08546358,3487.5,3487.2,1.727]
[1718972686454,2.08546358,3487.5,3487.3,0.3741]
[1718972686655,0.49656733,3487.4,3487.3,0.3741]
[1718972686858,2.08546358,3487.4,3487.3,0.3741]
[1718972687264,1.36353627,3487.7,3487.3,0.3741]
[1718972687430,4.17087408,3487.6,3487.5,2.014]
[1718972687632,2.469,3488.6,3487.5,2.72551]
[1718972687633,1.36353627,3487.9,3487.5,2.72551]
[1718972687827,2.08533454,3487.8,3487.5,2.72551]
[1718972688233,1.36353627,3488.2,3487.6,3.0]
[1718972688582,2.08516095,3488.1,3487.6,3.0]
[1718972688730,2.08512982,3488.0,3487.6,3.0]
[1718972688930,2.08512982,3487.9,3487.7,0.89931]
[1718972689266,1.36398819,3488.3,3487.7,0.89931]
[1718972689267,1.36398832,3488.3,3487.7,0.89931]
[1718972689434,2.08513101,3488.2,3487.7,0.89931]
[1718972689634,2.08513101,3488.2,3487.8,0.989241]
[1718972689836,2.08517581,3488.1,3487.8,0.989241]
[1718972690135,2.08517581,3488.0,3487.8,0.989241]
[1718972690442,2.08517581,3487.9,3487.8,0.989241]
[1718972690860,2.08517581,3488.1,3487.8,0.989241]
[1718972691176,2.08517581,3488.0,3487.6,4.727]
[1718972691330,2.08517581,3487.9,3487.6,4.727]
[1718972691534,1.3640781,3488.3,3487.6,4.727]
[1718972691882,2.08522043,3488.2,3487.7,0.89931]
[1718972692731,2.08522043,3488.1,3487.7,0.89931]
[1718972693027,2.08522043,3488.0,3487.7,0.89931]
[1718972693257,1.36405688,3488.4,3487.7,0.89931]
[1718972693502,2.08523547,3488.3,3487.7,0.89931]
[1718972693768,2.08523547,3488.3,3487.8,0.989241]
[1718972694338,2.08523547,3488.2,3487.8,0.989241]
[1718972694563,2.08523709,3488.1,3487.8,0.989241]
[1718972694767,1.36405688,3488.4,3487.6,4.727]
[1718972694968,2.08522542,3488.3,3487.6,3.0]
[1718972695171,4.22693873,3488.2,3487.6,3.0]
[1718972695346,2.08529935,3488.1,3487.4,2.014]
[1718972695680,2.08529935,3488.1,3487.4,5.014]
[1718972695832,2.08529935,3488.0,3487.5,1.54680755]
[1718972696036,2.08529935,3487.9,3487.5,3.0]
[1718972696233,0.05635698,3487.8,3487.5,3.0]
[1718972696468,0.05635698,3487.8,3487.2,5.72707547]
[1718972696469,1.41997936,3488.2,3487.3,3.0]
[1718972696678,2.58204376,3488.1,3487.3,3.0]
[1718972696980,2.14185387,3488.0,3487.3,3.0]
[1718972697285,2.08549689,3487.9,3487.3,4.30886755]
[1718972697686,1.36362238,3488.2,3487.3,4.30886755]
[1718972697974,2.08541034,3488.1,3487.5,2.014]
[1718972698182,2.3026,3489.1,3487.5,2.014]
[1718972698335,1.36353589,3488.3,3487.6,5.72707547]
[1718972698539,2.3026,3489.1,3487.7,0.77410755]
[1718972698737,1.36360624,3488.5,3487.7,0.77410755]
[1718972698936,4.17047421,3488.4,3487.9,2.014]
[1718972699167,1.36360624,3488.6,3487.9,2.014]
[1718972699378,4.17033306,3488.5,3488.0,0.27881075]
[1718972699546,4.17033306,3488.4,3488.0,0.27881075]
[1718972699765,2.08518656,3488.3,3488.0,0.27881075]
[1718972699971,2.08520191,3488.2,3488.0,0.27881075]
[1718972700193,1.36360624,3488.6,3488.0,0.27881075]
[1718972700392,4.17035652,3488.5,3488.0,0.27881075]
[1718972700601,2.08522136,3488.4,3488.0,0.27881075]
[1718972700801,1.36360624,3488.7,3488.1,0.22928107]
[1718972700802,1.36372386,3488.7,3488.1,0.22928107]
[1718972701022,4.17022717,3488.6,3488.1,0.22928107]
[1718972701165,2.08513297,3488.5,3488.1,0.22928107]
[1718972701499,1.36372386,3488.8,3488.1,0.22928107]
[1718972701657,4.17011632,3488.7,3488.2,0.25220918]
[1718972701861,4.17011632,3488.6,3488.1,0.22928107]
[1718972702056,2.08507725,3488.5,3488.1,0.22928107]
[1718972702283,1.36372386,3488.8,3488.1,0.22928107]
[1718972702484,4.17010023,3488.7,3488.1,0.22928107]
[1718972702688,2.08506061,3488.6,3488.1,0.22928107]
[1718972702887,2.45425204,3489.8,3488.5,2.014]
[1718972702888,1.36372386,3489.3,3488.5,2.014]
[1718972703116,2.2932,3490.4,3489.2,2.014]
[1718972703117,1.36372386,3489.9,3489.2,2.014]
[1718972703430,1.48463536,3490.0,3488.9,7.45407547]
[1718972703565,1.36400622,3489.8,3488.9,5.72707547]
[1718972703772,0.1209115,3490.0,3488.9,5.72707547]
[1718972703773,1.36400622,3489.5,3488.9,5.72707547]
[1718972704000,0.1209115,3490.0,3488.9,5.72707547]
[1718972704001,4.00105778,3489.4,3488.9,5.72707547]
[1718972704159,2.08438736,3489.3,3488.9,5.72707547]
[1718972704516,1.36400622,3489.1,3488.2,5.97928465]
[1718972704664,0.55275596,3489.0,3488.2,5.72707547]
[1718972704864,0.49643083,3488.9,3488.2,5.72707547]
[1718972705163,0.05635698,3488.8,3488.2,5.72707547]
[1718972706121,0.05635698,3488.9,3488.2,5.72707547]
[1718972706313,1.91681457,3488.9,3488.2,5.72707547]
[1718972706626,2.4836,3488.8,3488.2,5.72707547]
[1718972706810,1.36361559,3488.6,3488.2,5.72707547]
[1718972707125,1.91631194,3488.5,3488.2,5.72707547]
[1718972707406,1.85995496,3488.4,3488.2,5.72707547]
[1718972707702,1.36346754,3488.6,3487.5,5.72707547]
[1718972708017,1.91632481,3488.5,3487.5,8.5035036]
[1718972708170,0.49650029,3488.4,3487.5,5.72707547]
[1718972708365,0.05635698,3488.3,3487.5,5.72707547]
[1718972709389,1.36346754,3488.4,3487.5,5.72707547]
[1718972709590,1.36352589,3488.4,3487.5,5.72707547]
[1718972709910,1.36352589,3487.8,3487.1,8.77917547]
[1718972710106,1.36352589,3487.4,3486.7,5.72707547]
[1718972710313,1.36352589,3487.2,3486.7,6.52926302]
[1718972710616,2.4881,3488.0,3486.7,6.52926302]
[1718972710617,1.8600316,3487.1,3486.7,5.72707547]
[1718972710904,1.36352589,3487.3,3486.4,2.2948]
[1718972711138,1.36352589,3487.3,3486.7,2.014]
[1718972711326,1.36352589,3487.5,3486.7,2.014]
[1718972711465,3.0,3487.9,3486.7,2.014]
[1718972711466,1.36352589,3487.4,3486.8,0.2014]
[1718972711897,1.41988287,3487.3,3486.3,3.0521]
[1718972712206,1.36352589,3487.1,3486.3,3.0521]
[1718972712413,0.05635698,3487.0,3486.3,3.0521]
[1718972712598,1.86048417,3487.1,3486.4,2.77642813]
[1718972712771,0.05635698,3487.0,3486.4,2.77642813]
[1718972713599,1.36380941,3487.2,3486.4,2.77642813]
[1718972715324,1.36380941,3487.0,3486.2,5.72707547]
[1718972715508,0.05635698,3486.9,3486.2,5.72707547]
[1718972715826,1.36373624,3486.8,3486.2,5.72707547]
[1718972716022,0.55309951,3486.7,3486.2,5.72707547]
[1718972716180,1.86047117,3486.6,3486.2,5.72707547]
[1718972716374,1.36372864,3486.4,3486.2,5.72707547]
[1718972716603,0.49680254,3486.3,3485.5,5.72707547]
[1718972716806,1.91688816,3486.3,3485.5,5.72707547]
[1718972717011,0.49680254,3486.2,3485.6,0.57270755]
[1718972717522,0.49680254,3486.2,3485.2,8.77917547]
[1718972717523,1.91693857,3486.2,3485.2,8.77917547]
[1718972717686,1.86058159,3486.1,3485.2,8.77917547]
[1718972717887,0.05635698,3486.0,3485.2,8.77917547]
[1718972718710,1.36360687,3486.1,3485.2,8.77917547]
[1718972718913,0.05635698,3486.0,3485.2,10.79317547]
[1718972719085,0.05635698,3486.0,3485.2,12.12041302]
[1718972719725,6.026,3487.0,3485.2,12.12041302]
[1718972719726,1.36360687,3486.4,3485.2,12.12041302]
[1718972719925,0.05635698,3486.3,3485.2,12.12041302]
[1718972720220,0.05635698,3486.3,3485.3,1.2120413]
[1718972720406,0.05635698,3486.3,3485.4,0.03066137]
[1718972720927,0.05635698,3486.5,3485.4,0.03066137]
[1718972721991,0.05635698,3486.4,3485.4,0.03066137]
[1718972722309,0.05635698,3486.5,3485.6,2.014]
[1718972722939,0.05635698,3486.8,3485.6,2.014]
[1718972723238,0.05635698,3486.7,3485.6,2.014]
[1718972723519,0.05635698,3486.7,3485.7,0.30451016]
[1718972724002,0.05635698,3486.9,3485.7,0.30451016]
[1718972724407,1.86042571,3486.8,3485.2,1.32723755]
[1718972724610,2.14306121,3486.7,3484.9,4.2042]
[1718972724782,2.14306121,3486.7,3485.0,2.014]
[1718972724783,1.36356655,3486.4,3485.0,2.014]
[1718972724991,0.05635698,3486.3,3485.0,2.014]
[1718972725226,0.05635698,3486.2,3485.1,0.62182]
[1718972725522,1.36354542,3486.4,3485.1,0.62182]
[1718972725724,0.05635698,3486.3,3485.1,0.62182]
[1718972725911,1.36354542,3486.7,3485.4,2.014]
[1718972726096,0.05635698,3486.6,3485.5,0.2014]
[1718972726486,0.05635698,3486.6,3485.8,2.014]
[1718972726985,1.36354542,3487.2,3485.9,1.725]
[1718972727188,3.77564542,3487.6,3486.4,2.014]
[1718972727386,0.05635698,3487.5,3486.4,2.2154]
[1718972728329,0.05635698,3487.5,3486.4,3.9404]
[1718972728545,0.05635698,3487.7,3486.4,3.9404]
[1718972730910,0.05635698,3487.6,3486.4,0.2014]
[1718972731140,1.36513308,3487.4,3485.8,4.4547]
[1718972731288,2.4641,3487.2,3485.8,4.4547]
[1718972731490,2.4641,3487.2,3485.5,0.2014]
[1718972731491,1.36513308,3487.0,3485.9,5.72707547]
[1718972731716,1.36513308,3486.8,3485.9,5.72707547]
[1718972731939,1.36513308,3486.6,3485.9,5.72707547]
[1718972732095,0.05635698,3486.5,3485.9,6.60499302]
[1718972732298,0.05635698,3486.5,3485.9,0.87791755]
[1718972732524,0.05635698,3486.5,3485.6,3.0521]
[1718972733297,0.05635698,3486.6,3485.7,2.014]
[1718972734527,1.36510342,3486.7,3485.7,2.014]
[1718972734740,1.36510342,3486.8,3485.7,2.014]
[1718972734904,0.05635698,3486.7,3485.8,1.27195755]
[1718972735731,1.91820271,3486.7,3485.8,1.27195755]
[1718972735905,1.4214604,3486.7,3485.8,1.27195755]
[1718972736109,0.49675319,3486.6,3485.8,1.27195755]
[1718972736308,0.55311017,3486.6,3485.9,0.80630576]
[1718972736529,1.91821689,3486.6,3485.9,0.80630576]
[1718972736700,0.49675671,3486.5,3485.9,0.80630576]
[1718972737022,1.4214604,3486.6,3485.9,0.80630576]
[1718972737023,1.36536453,3486.6,3485.9,0.80630576]
[1718972737333,1.36536453,3486.6,3485.7,2.014]
[1718972737566,1.86212129,3486.5,3485.7,2.014]
[1718972737729,1.36536453,3486.5,3485.7,2.014]
[1718972737921,1.36536453,3486.7,3486.1,2.014]
[1718972738123,1.86212129,3486.6,3486.2,0.2014]
[1718972738420,1.36536453,3486.6,3486.2,0.2014]
[1718972739058,3.0,3487.5,3486.2,0.2014]
[1718972739059,1.36536453,3486.7,3486.2,0.2014]
[1718972739260,1.36536453,3486.7,3486.1,2.014]
[1718972739570,1.86207958,3486.6,3486.1,2.014]
[1718972739857,3.0,3487.6,3486.1,2.014]
[1718972739858,1.36536453,3486.4,3486.1,2.014]
[1718972740162,1.36603968,3486.5,3486.1,2.014]
[1718972740464,1.36603968,3486.6,3486.2,0.43489]
[1718972741192,1.86275243,3486.5,3486.2,0.43489]
[1718972741379,1.36603968,3486.5,3486.2,0.43489]
[1718972743178,1.36610042,3486.5,3486.2,0.43489]
[1718972743329,1.36610042,3486.5,3486.3,0.650879]
[1718972743526,1.36625344,3486.5,3486.3,0.650879]
[1718972743975,1.86296802,3486.4,3486.3,0.650879]
[1718972744263,0.49671458,3486.4,3486.1,2.014]
[1718972744469,1.36625344,3486.5,3486.1,2.014]
[1718972744670,1.86296802,3486.4,3486.1,2.014]
[1718972744875,1.36625344,3486.4,3486.1,2.014]
[1718972745078,1.36625344,3486.4,3486.2,0.60739]
[1718972746192,3.0,3487.6,3486.2,0.60739]
[1718972746484,1.3662919,3486.4,3486.2,6.33446547]
[1718972746646,1.3662919,3486.4,3486.2,0.60739]
[1718972746842,1.3662919,3486.4,3486.3,0.668129]
[1718972747789,0.49671344,3487.4,3485.8,2.014]
[1718972748092,3.0,3487.6,3485.8,5.014]
[1718972748093,1.3663011,3486.2,3485.8,5.014]
[1718972748458,1.3663011,3486.2,3485.8,2.48822556]
[1718972749379,1.36560688,3486.1,3485.8,2.48822556]
[1718972751177,1.36560688,3485.9,3485.8,2.48822556]
[1718972751379,0.49675182,3486.8,3485.8,2.014]
[1718972751578,4.72622498,3486.7,3485.8,2.014]
[1718972751759,4.669868,3486.6,3485.8,2.014]
[1718972752095,2.3727,3486.9,3485.8,2.014]
[1718972752096,4.72622498,3486.5,3485.8,2.014]
[1718972752294,4.17311618,3486.4,3485.8,2.014]
[1718972752466,4.17309779,3486.3,3485.8,2.014]
[1718972752673,2.58340084,3486.2,3485.8,2.96060755]
[1718972752853,2.58342822,3486.1,3485.8,2.96060755]
[1718972753056,1.36449459,3485.9,3485.8,2.96060755]
[1718972753279,1.86130771,3485.9,3485.8,2.96060755]
[1718972753492,2.324,3487.4,3485.8,2.96060755]
[1718972753795,2.324,3487.4,3485.8,3.739]
[1718972753796,1.36450819,3486.1,3485.8,3.739]
[1718972754303,1.36450819,3486.2,3485.8,3.739]
[1718972755690,3.94777521,3486.1,3485.8,3.739]
[1718972755874,1.36468041,3486.1,3485.8,3.739]
[1718972756070,1.36468041,3486.1,3485.9,0.94660755]
[1718972756273,0.4967476,3487.3,3485.9,0.94660755]
[1718972756274,3.45109348,3486.0,3485.9,0.94660755]
[1718972756486,2.58316067,3486.0,3485.8,3.739]
[1718972756689,3.94775693,3485.9,3485.8,3.739]
[1718972756859,3.94775693,3485.9,3485.6,5.72707547]
[1718972757060,3.94775693,3485.8,3485.6,7.74107547]
[1718972757260,2.58335981,3485.7,3485.6,7.74107547]
[1718972757497,2.58335981,3485.7,3485.6,9.23596302]
[1718972757699,2.08661221,3485.7,3485.6,3.50888755]
[1718972757883,1.36459626,3485.9,3485.6,2.014]
[1718972758065,2.45820966,3487.1,3485.6,2.014]
[1718972758066,3.94798146,3485.8,3485.6,2.014]
[1718972758400,2.58344368,3485.7,3485.6,2.014]
[1718972758558,2.58344368,3485.7,3485.0,5.72707547]
[1718972758559,4.67008206,3485.7,3485.2,1.725]
[1718972758762,1.36446947,3485.4,3485.2,4.61170755]
[1718972758963,1.36446947,3485.4,3485.3,1.0338783]
[1718972759165,3.45131862,3485.4,3485.2,3.739]
[1718972759404,1.36446947,3485.4,3485.2,3.739]
[1718972759761,1.36446947,3485.5,3485.2,3.739]
[1718972760218,1.36446947,3485.6,3485.2,3.739]
[1718972760379,2.08673354,3485.5,3485.3,0.3739]
[1718972760578,3.45120301,3485.5,3485.3,0.3739]
[1718972760789,1.36446947,3485.5,3485.3,2.0989]
[1718972760983,1.36446947,3485.8,3485.4,2.275]
[1718972761179,3.0,3486.7,3485.8,2.014]
[1718972761382,2.4398,3486.8,3485.8,2.014]
[1718972761383,1.36522512,3485.9,3485.8,2.014]
[1718972761708,3.94851234,3485.9,3485.8,2.014]
[1718972761921,4.66971973,3485.9,3485.8,2.014]
[1718972762212,3.94880794,3485.9,3485.8,3.9404]
[1718972762506,1.36565363,3486.2,3485.8,6.9293]
[1718972762682,1.36565363,3486.2,3485.9,2.275]
[1718972762890,1.36565363,3486.3,3485.9,2.275]
[1718972763212,2.08627717,3486.2,3485.9,2.275]
[1718972763507,2.08627717,3486.2,3486.1,2.014]
[1718972763742,2.08627717,3486.2,3486.1,3.739]
[1718972763743,2.5830047,3486.2,3486.1,3.739]
[1718972763872,1.36565363,3486.6,3486.1,7.289]
[1718972764076,2.46448826,3488.0,3486.5,4.0426]
[1718972764332,4.66808898,3487.9,3487.3,2.014]
[1718972764608,1.36690561,3487.5,3487.3,2.2154]
[1718972764819,4.17148935,3487.4,3487.3,2.2154]
[1718972764975,4.66808898,3487.4,3487.3,2.2154]
[1718972765177,6.03499459,3487.4,3487.3,2.2154]
[1718972765374,3.9492237,3487.4,3487.3,0.2014]
[1718972765568,2.58231809,3487.4,3487.3,0.2014]
[1718972766434,3.0,3488.5,3487.3,0.2014]
[1718972766435,1.36690561,3487.7,3487.3,0.2014]
[1718972766572,1.36690561,3487.9,3487.6,2.014]
[1718972766930,2.4466,3488.8,3487.6,2.014]
[1718972766931,1.36690561,3488.0,3487.6,2.014]
[1718972767077,4.17066623,3487.9,3487.6,2.014]
[1718972767278,1.36804967,3488.1,3487.7,0.2014]
[1718972767516,4.1706178,3488.0,3487.6,2.014]
[1718972767699,1.36804967,3488.1,3487.6,2.014]
[1718972767700,2.08531104,3487.9,3487.6,2.014]
[1718972768024,1.36804967,3488.1,3487.6,2.014]
[1718972768217,4.17063423,3488.0,3487.6,2.014]
[1718972768382,1.36804967,3488.1,3487.6,2.61574]
[1718972768583,2.08536707,3488.0,3487.6,4.34074]
[1718972768796,1.36804967,3488.2,3487.6,4.34074]
[1718972768992,4.17062775,3488.1,3487.6,4.34074]
[1718972769284,1.36804967,3488.6,3488.0,2.014]
[1718972769507,4.17038045,3488.5,3488.0,2.014]
[1718972769817,2.3927,3489.4,3488.0,2.014]
[1718972769818,1.36804967,3488.7,3488.0,2.014]
[1718972770123,2.3927,3489.4,3488.0,2.014]
[1718972770347,1.36639551,3489.0,3488.4,2.014]
[1718972770482,2.0849457,3488.9,3488.4,2.014]
[1718972771397,1.36644703,3489.1,3488.4,2.014]
[1718972771598,4.16992973,3489.0,3488.4,2.014]
[1718972771904,1.36644703,3489.1,3488.4,2.014]
[1718972771905,2.08497743,3488.9,3488.4,2.014]
[1718972772110,1.36644703,3489.1,3488.4,2.014]
[1718972772435,4.16994255,3489.0,3488.4,2.014]
[1718972772750,1.36644703,3489.1,3488.4,2.014]
[1718972773051,4.17002091,3489.0,3488.4,2.014]
[1718972773205,2.58148481,3489.0,3488.4,2.014]
[1718972773413,1.36785519,3489.1,3488.4,2.014]
[1718972773612,2.63782295,3489.0,3488.0,5.72707547]
[1718972773814,3.78245519,3488.6,3488.0,5.72707547]
[1718972774014,3.78245519,3488.6,3486.8,2.3308]
[1718972774015,1.36785519,3488.4,3487.5,5.72707547]
[1718972774201,1.36785519,3488.2,3487.5,5.72707547]
[1718972774523,2.14138719,3488.1,3487.5,5.72707547]
[1718972774696,0.05635698,3488.1,3487.5,5.72707547]
[1718972775336,0.05635698,3488.2,3487.5,6.60499302]
[1718972775928,2.08563777,3488.1,3487.5,6.60499302]
[1718972776119,0.05635698,3488.0,3487.5,6.60499302]
[1718972776321,2.4146,3488.6,3487.5,8.61899302]
[1718972776322,1.36761857,3488.4,3487.5,8.61899302]
[1718972776496,2.4146,3488.6,3487.9,2.014]
[1718972776497,1.36761857,3488.6,3487.9,2.014]
[1718972776703,1.36761857,3488.9,3487.9,2.014]
[1718972776900,2.2775,3489.1,3487.9,2.014]
[1718972776901,0.05635698,3488.8,3487.9,2.014]
[1718972777432,1.36761857,3489.2,3488.0,1.725]
[1718972777642,1.36761857,3489.2,3487.5,5.72707547]
[1718972777643,1.36761857,3488.8,3487.5,5.72707547]
[1718972777803,1.36761857,3488.6,3487.5,5.72707547]
[1718972778132,1.36761857,3488.4,3487.5,5.72707547]
[1718972778333,0.05635698,3488.3,3487.5,5.72707547]
[1718972778547,1.36761857,3488.5,3487.6,0.77410755]
[1718972778745,1.36761857,3488.9,3487.8,2.014]
[1718972779036,6.09088906,3488.8,3487.8,3.0380183]
[1718972779251,0.05635698,3488.8,3487.8,3.0380183]
[1718972780145,0.55285622,3488.8,3487.8,3.0380183]
[1718972780433,0.55285622,3488.8,3487.5,5.72707547]
[1718972780434,1.36714756,3488.6,3487.5,5.72707547]
[1718972780737,1.36714756,3488.2,3487.5,5.72707547]
[1718972780902,2.63865867,3488.1,3487.5,5.72707547]
[1718972781106,1.42350454,3488.1,3487.5,5.72707547]
[1718972782240,0.05635698,3488.1,3487.5,5.72707547]
[1718972782439,2.14208088,3488.0,3487.2,3.0521]
[1718972782647,1.36637823,3487.8,3487.1,5.72707547]
[1718972782944,4.00526729,3487.7,3487.1,5.72707547]
[1718972783116,4.00526729,3487.7,3487.1,6.29978302]
[1718972783117,0.05635698,3487.7,3487.1,6.29978302]
[1718972785616,1.36689368,3487.8,3487.1,6.29978302]
[1718972785831,0.05635698,3487.7,3487.1,5.72707547]
[1718972786461,1.91988605,3487.7,3487.1,5.72707547]
[1718972786659,1.42325066,3487.7,3487.1,5.72707547]
[1718972786804,1.36689368,3487.5,3487.1,5.72707547]
[1718972787008,1.36689368,3487.3,3486.5,5.72707547]
[1718972787235,1.36689368,3487.0,3486.5,5.72707547]
[1718972787551,0.55309838,3486.9,3486.5,5.72707547]
[1718972787840,1.91998551,3486.9,3486.5,5.72707547]
[1718972788041,0.49673485,3486.8,3486.5,5.72707547]
[1718972788361,0.05635698,3486.7,3486.5,5.72707547]
[1718972788640,0.05635698,3486.7,3486.1,3.0521]
[1718972788641,2.36013956,3486.6,3485.7,5.72707547]
[1718972788855,1.91966865,3486.5,3485.7,6.97889302]
[1718972789004,0.4968028,3486.4,3485.7,6.97889302]
[1718972789206,1.42281985,3486.5,3485.7,6.97889302]
[1718972789412,0.49679749,3486.4,3485.8,0.6978893]
[1718972789627,0.05635698,3486.4,3485.8,0.6978893]
[1718972791642,0.05635698,3486.4,3485.8,2.7118893]
[1718972791844,1.86279497,3486.6,3485.8,2.7118893]
[1718972792059,0.49678339,3486.6,3485.9,0.96907823]
[1718972792564,0.49678339,3486.6,3486.2,2.014]
[1718972795323,0.49678339,3486.6,3485.7,6.97889302]
[1718972795520,0.05635698,3486.5,3485.7,6.97889302]
[1718972796471,0.05635698,3486.5,3485.7,5.72707547]
[1718972796757,1.91933455,3486.5,3485.7,5.72707547]
[1718972796937,1.42252186,3486.5,3485.7,5.72707547]
[1718972797741,0.05635698,3486.5,3485.7,5.72707547]
[1718972797932,1.42207998,3486.5,3485.7,5.72707547]
[1718972798168,0.49681761,3486.4,3485.7,5.72707547]
[1718972798349,0.05635698,3486.4,3485.7,5.72707547]
[1718972798570,0.05635698,3486.4,3485.8,0.77410755]